Cogmind - Beta 13 *** ADVENTURER MODE // 2024.05.15 @ 20:43:37 Player: Bear Result: Self-destructed Performance ------------- Evolutions (1) 500 Regions Visited (3) 600 Robots Destroyed (8) 40 Value Destroyed (232) 232 Prototype IDs (0) 0 Alien Tech Used (0) 0 Bonus (0) 0 TOTAL SCORE: 1372 Bonus ------- None Cogmind --------- Core Integrity 352/400 Matter 300/300 Energy 228/250 System Corruption 1% Temperature Warm (114) Movement Walking (190) Ox1 Location -9/Mines Parts ------- > --- POWER (1) -------- Ion Engine > --- PROPULSION (2) --- Aluminum Leg > --- UTILITY (4) ------ Improved Heat Sink Visual Processing Unit Sensor Array > --- WEAPON (2) ------- Particle Gun Particle Gun > --- INVENTORY (5) ---- Light Ion Engine Aluminum Leg Aluminum Leg Heat Sink High-capacity Matter Pod (198) Peak State ------------ > --- POWER ------------ Ion Engine > --- PROPULSION ------- Aluminum Leg Aluminum Leg > --- UTILITY ---------- Improved Heat Sink High-capacity Matter Pod Visual Processing Unit Sensor Array > --- WEAPON ----------- Particle Gun Particle Gun > --- INVENTORY -------- Light Ion Engine Aluminum Leg Aluminum Leg Heat Sink Medium Laser [Rating: 14] Favorites ----------- Power Light Ion Engine Engine Light Ion Engine Propulsion Aluminum Leg Leg Aluminum Leg Utility Improved Heat Sink Device Improved Heat Sink Storage High-capacity Matter Pod Processor Visual Processing Unit Protection Light Armor Plating Weapon Particle Gun Energy Gun Particle Gun Build | -11 -10 -9 -9 ------- Run | Yrd Mat Mat Min Slots Evolved 2 | . . 2 . Power . | . . . . Propulsion . | . . . . Utility 2 | . . 2 . Weapon . | . . . . Parts Attached 14 | 5 . 8 1 Power 2 | 1 . 1 . Engine 2 | 1 . 1 . Core . | . . . . Reactor . | . . . . Propulsion 2 | 2 . . . Treads . | . . . . Leg 2 | 2 . . . Wheel . | . . . . Hover . | . . . . Flight . | . . . . Utility 6 | . . 5 1 Device 2 | . . 2 . Storage 1 | . . 1 . Processor 1 | . . 1 . Hackware . | . . . . Protection 2 | . . 1 1 Artifact . | . . . . Weapon 4 | 2 . 2 . Energy Gun 4 | 2 . 2 . Energy Cannon . | . . . . Ballistic Gun . | . . . . Ballistic Cannon . | . . . . Launcher . | . . . . Special Weapon . | . . . . Impact Weapon . | . . . . Slashing Weapon . | . . . . Piercing Weapon . | . . . . Special Melee Weapon . | . . . . Unidentified Prototypes . | . . . . Parts Lost 2 | . . . 2 Power . | . . . . Propulsion 1 | . . . 1 Utility 1 | . . . 1 Weapon . | . . . . Highest Loss Streak 2 | . . . 2 To Critical Strikes . | . . . . Average Slot Usage (%) 82 | . 71 78 100 Engine 12 | . 14 11 11 Leg 24 | . 28 22 22 Device 9 | . . 8 22 Storage 3 | . . 11 . Processor 4 | . . 4 11 Protection 3 | . . . 11 Energy Gun 24 | . 28 22 22 Naked Turns . | . . . . Heaviest Build 17 | 6 6 17 16 Greatest Support 20 | 20 20 20 20 Greatest Overweight (x) . | . . . . Average Overweight (x) . | . . . . Largest Inventory Capacity 5 | 5 5 5 5 Average Capacity 5 | 5 5 5 5 Most Carried 5 | 2 3 5 5 Average Carried 3 | 1 2 3 5 Final Capacity 5 | 5 5 5 5 Final Carried 5 | 2 3 5 5 Class Distribution -------------------- 63% | Mutant 36% | Scavenger-Mutant Dominant Class ---------------- Mutant | -10/Materials Mutant | -9/Materials Scavenger-Mutant | -9/Mines Resources | -11 -10 -9 -9 ----------- Run | Yrd Mat Mat Min Matter Collected 543 | 250 . 262 31 Remotely . | . . . . Salvage Created 352 | 43 . 303 6 Parts 21 | 1 . 20 . Haulers Intercepted . | . . . . Recyclers Shooed . | . . . . Parts Field Recycled . | . . . . Retrieved Matter . | . . . . Parts Self-Destructed . | . . . . Prevented . | . . . . Kills | -11 -10 -9 -9 ------- Run | Yrd Mat Mat Min Combat Hostiles Destroyed 6 | 1 . 4 1 Guns 6 | 1 . 4 1 Classes Destroyed 5 | 1 . 3 1 Recycler 1 | . . 1 . Watcher 2 | . . 2 . Grunt 4 | 1 . 3 . Sentry 1 | . . 1 . Assembled 1 | . . . 1 Best Kill Streak 3 | 1 . 3 1 Combat Bots Only 3 | 1 . 3 1 Max Kills in Single Turn 1 | 1 . 1 1 Gunslinging . | . . . . Exploded . | . . . . Melee . | . . . . Uniques/NPCs Destroyed . | . . . . Combat | -11 -10 -9 -9 -------- Run | Yrd Mat Mat Min Hostile Shots Fired 37 | 5 . 17 15 Missed 10 | 2 . 5 3 Damage Taken 412 | 26 32 111 243 Core 48 | . . 48 . Absorbed by Shields . | . . . . Ignored by Resistances 118 | 8 9 33 68 Core Remaining (%) 100 | 100 100 . . Volleys Fired 34 | 3 . 21 10 Largest 2 | 2 . 2 2 Hottest 130 | 90 . 115 130 Shots Fired 68 | 6 . 41 21 Gun 68 | 6 . 41 21 Cannon . | . . . . Launcher . | . . . . Special . | . . . . Kinetic . | . . . . Thermal 68 | 6 . 41 21 Explosive . | . . . . Electromagnetic . | . . . . Robot Hit Streak 7 | 4 . 7 7 Robot Miss Streak 1 | 1 . 1 1 Penetration Max . | . . . . Secondary Targets 1 | . . . 1 Max Gunslinging Chain 1 | . . . 1 Shots Hit Robots 38 | 5 . 26 7 Core Hits 17 | 2 . 13 2 Critical Kills . | . . . . Critical Parts Destroyed . | . . . . Critical Strikes 2 | . . 2 . Burn 2 | . . 2 . Melee Attacks . | . . . . Impact . | . . . . Slashing . | . . . . Piercing . | . . . . Sneak Attacks . | . . . . Combat Hostiles . | . . . . Follow-up Attacks . | . . . . Damage Inflicted 527 | 55 . 359 113 Guns 527 | 55 . 359 113 Cannons . | . . . . Explosions . | . . . . Melee . | . . . . Ramming . | . . . . Kinetic . | . . . . Thermal 527 | 55 . 359 113 Explosive . | . . . . Electromagnetic . | . . . . Impact . | . . . . Slashing . | . . . . Piercing . | . . . . Highest Corruption 1 | . . 1 1 Average Corruption 1 | . . 1 1 Corruption Purged . | . . . . Corruption Blocked . | . . . . Effects 2 | . . . 2 Matter Fused 1 | . . . 1 Misfires 1 | . . . 1 Overload Shots . | . . . . Overflow Damage . | . . . . Projectiles . | . . . . Explosions . | . . . . Melee . | . . . . Knockbacks . | . . . . Impact . | . . . . Kinetic . | . . . . Secondary . | . . . . Self-Inflicted Damage . | . . . . Shots . | . . . . Rammed . | . . . . Targets Rammed . | . . . . Kicked . | . . . . Crushed . | . . . . Highest Temperature 195 | 102 . 195 162 Average Temperature 56 | 53 . 47 76 Received Heat Transfer 104 | 18 . 66 20 Siege Activations . | . . . . Robots Corrupted . | . . . . Combat Hostiles . | . . . . Parts Fried . | . . . . Impact Corruptions . | . . . . Robots Melted . | . . . . Combat Hostiles . | . . . . Parts Melted 2 | 1 . 1 . Heat Transferred 1495 | 149 . 1087 259 Parts Sabotaged . | . . . . Parts Stolen . | . . . . Parts Stripped . | . . . . Power Chain Reactions . | . . . . Alert | -11 -10 -9 -9 ------- Run | Yrd Mat Mat Min Peak Influence 158 | 20 26 158 51 Initial 51 | . 11 9 51 Average 45 | 4 11 94 50 Maximum Alert Level . | . . . . Low Security (%) 100 | 100 100 100 100 Level 1 . | . . . . Level 2 . | . . . . Level 3 . | . . . . Level 4 . | . . . . Level 5 . | . . . . High Security . | . . . . Max Security . | . . . . Squads Dispatched 1 | . . 1 . Investigation . | . . . . Extermination . | . . . . Reinforcement 1 | . . 1 . Assault . | . . . . Garrison . | . . . . Intercept . | . . . . Searches Triggered . | . . . . Construction Impeded . | . . . . Haulers Reinforced . | . . . . Active Scanning Responses . | . . . . Cargo Convoy Interrupts . | . . . . Stealth | -11 -10 -9 -9 --------- Run | Yrd Mat Mat Min Distress Signals . | . . . . Communications Jammed . | . . . . Distress Signals . | . . . . Times Spotted 24 | 1 2 8 13 Peak Tracking Total 13 | 1 2 4 13 Tactical Retreats 1 | . . . 1 Traps | -11 -10 -9 -9 ------- Run | Yrd Mat Mat Min Traps Triggered 2 | . 1 1 . Indirectly . | . . . . Trap Hack Attempts . | . . . . Triggered . | . . . . Disarmed . | . . . . Reprogrammed . | . . . . Reused . | . . . . Traps Extracted . | . . . . Installed . | . . . . Triggered . | . . . . Machines | -11 -10 -9 -9 ---------- Run | Yrd Mat Mat Min Machines Disabled . | . . . . Max in Single Turn . | . . . . Machines Repaired . | . . . . Machines Dismantled . | . . . . Machines Sabotaged . | . . . . Overloaded Fab Kills . | . . . . Hacking | -11 -10 -9 -9 --------- Run | Yrd Mat Mat Min Machines Accessed 1 | . 1 . . Terminals . | . . . . Fabricators . | . . . . Repair Stations . | . . . . Recycling Units 1 | . 1 . . Scanalyzers . | . . . . Garrison Access . | . . . . Total Hacks 4 | . 4 . . Successful 1 | . 1 . . Failed 3 | . 3 . . Catastrophic 1 | . 1 . . Database Lockouts . | . . . . Manual . | . . . . Terminals . | . . . . Fabricators . | . . . . Repair Stations . | . . . . Recycling Units 4 | . 4 . . Scanalyzers . | . . . . Garrison Access . | . . . . Terminal Hacks . | . . . . Fabricator Hacks . | . . . . Repair Station Hacks . | . . . . Recycling Unit Hacks 1 | . 1 . . Report Inventory 1 | . 1 . . Scanalyzer . | . . . . Garrison Access Hacks . | . . . . Unauthorized Hacks . | . . . . Terminals . | . . . . Fabricators . | . . . . Repair Stations . | . . . . Recycling Units . | . . . . Scanalyzers . | . . . . Garrison Access . | . . . . Data Cores Recovered . | . . . . Used . | . . . . Hacking Detections 1 | . 1 . . Full Trace Events 1 | . 1 . . Feedback Events . | . . . . Feedback Blocked . | . . . . Robot Schematics Acquired . | . . . . Robots Built . | . . . . Authchips . | . . . . Time . | . . . . Total Robot Build Rating . | . . . . Part Schematics Acquired . | . . . . Parts Built . | . . . . Authchips . | . . . . Time . | . . . . Total Part Build Rating . | . . . . Parts Repaired . | . . . . Time . | . . . . Parts Recycled . | . . . . Recycled Matter . | . . . . Retrieved Matter . | . . . . Retrieved Components . | . . . . Parts Scanalyzed . | . . . . Part Schematics Acquired . | . . . . Parts Damaged . | . . . . Bothacking | -11 -10 -9 -9 ------------ Run | Yrd Mat Mat Min Used RIF Installer . | . . . . Robots Hacked . | . . . . Non-combat . | . . . . Combat . | . . . . Robot Hacks Applied . | . . . . Relay Couplers Released . | . . . . Fabnet Peak Effective % . | . . . . Robots Rewired . | . . . . Allies Hacked . | . . . . Hacks Repelled . | . . . . Allies | -11 -10 -9 -9 -------- Run | Yrd Mat Mat Min Total Allies . | . . . . Largest Group . | . . . . Highest-Rated Group . | . . . . Highest-Rated Ally . | . . . . Total Orders . | . . . . Ally Attacks . | . . . . Total Damage . | . . . . Kills . | . . . . Allies Corrupted . | . . . . Allies Melted . | . . . . Intel | -11 -10 -9 -9 ------- Run | Yrd Mat Mat Min Robot Analysis Total . | . . . . Derelict Logs Recovered . | . . . . Drone Launches . | . . . . Drone Recoveries . | . . . . Exploration | -11 -10 -9 -9 ------------- Run | Yrd Mat Mat Min Turns Passed 633 | 100 182 192 159 Spaces Moved 423 | 76 150 91 106 Core 17 | 17 . . . Treads . | . . . . Legs 406 | 59 150 91 106 Wheels . | . . . . Hover . | . . . . Flight . | . . . . Fastest Speed 50 | 50 120 120 120 Average Speed 117 | 104 120 120 120 Slowest Speed 120 | 120 120 120 120 Overloaded Moves . | . . . . Propulsion Burnouts . | . . . . Robots Hopped . | . . . . Cave-ins Triggered . | . . . . Exploration Rate (%) 14 | 7 20 10 20 Regions Visited 3 Branch Regions 1 Pre-discovered Areas . | . . . . Known Exits Taken . | . . . . Unknown Exits Taken 3 | 1 1 1 . Scrap Searched 1 | . . . 1 Spaces Dug . | . . . . Terrain Destroyed . | . . . . Melee . | . . . . Projectile . | . . . . AOE . | . . . . Terrain Rammed . | . . . . Walls Destroyed . | . . . . Machines Disabled . | . . . . Actions | -11 -10 -9 -9 --------- Run | Yrd Mat Mat Min Total 494 | 90 152 135 117 Wait 2 | . 2 . . Move 420 | 75 149 90 106 Hop . | . . . . Pick Up 19 | 7 1 11 . Fast Attach 1 | . . . 1 Attach 10 | 5 . 5 . Detach . | . . . . Swap 3 | . . 3 . Drop 5 | . . 5 . Fire 34 | 3 . 21 10 Melee . | . . . . Ram . | . . . . Kick . | . . . . Crush . | . . . . Escape Stasis . | . . . . Rewire . | . . . . Trap . | . . . . Miscellaneous . | . . . . Route ------- -11/Scrapyard -10/Materials -9/Materials -9/Mines History --------- Turn | Location | Event 2 | -11/Scrapyard | Met Revision 17 66 | -11/Scrapyard | Discovered new exit (range 8) 101 | -11/Scrapyard | Entered Materials 277 | -10/Materials | Discovered new exit (range 3) 283 | -10/Materials | Entered another Materials area 283 | -9/Materials | Evolved 2 slots: Utility x2 304 | -9/Materials | Build established: Mutant 420 | -9/Materials | Discovered new exit (range 10) 475 | -9/Materials | Entered Mines 552 | -9/Mines | Met a Derelict bent on vengeance 606 | -9/Mines | Assembled infested the area 611 | -9/Mines | Assisted by a Guerilla fighting off Assembled 634 | -9/Mines | Self-destructed Last Messages --------------- 00492_ Found Lgt. Armor Plating. 00492_ Found 31 Matter. 00493_ Acquired 31 matter. 00599_ K-01 Serf collects debris. 00606_ ALERT: Infestation in the mines, dispatching Demolisher response squad. 00606_ K-01 Serf collects debris. 00626_ Core Extractor disabled. 00627_ Destroyed Asb. Hover Unit. 00628_ K-01 Serf collects debris. 00630_ as-04704 destroyed. 00630_ Switching to secondary target: as-57626. 00630_ Lgt. Armor Plating severed. 00633_ System corrupted: FCS attempts to trigger Particle Gun. 00633_ System corrupted: Particle Gun misfires. 00633_ Acquired Lgt. Armor Plating. 00633_ Aluminum Leg destroyed. 00633_ Lgt. Armor Plating destroyed. 00634_ as-77003 destroyed. Map ----- +----------------------------------------------------+ | | | | | ?????????????????????????????????????????? | | ?????????????????????????????????????????? | | ?????????????????????????????????????????? | | ?????????????????????????????????????????? | | ?????????????????????????????????????????? | | ?????????????????????????????????????????? | | ?????????????????????????????????????????? | | ?????????????????????????????????????????? | | ?????????????????????????????????????????? | | ?????????????????????????????????????????? | | ?????????????????????????????????????????? | | ?????????????????????????????????????????? | | ?????????????????????????????????????????? | | ?????????????????????????????????????????? | | ?????????????????????????????????????????? | | ?????????????????????????????????????????? | | ?????????????????????????????????????????? | | ????????????????????????####?????????????? | | ???????????????????????? ?????? ????? | | ???????????????????????? ????? ????? | | ????????????????????????# #????# ????? | | ????????????????????????# #???# #???? | | ???????????????????????## #?## #???? | | ????????????????????####%@## #???? | | ???????????????????## aa ? #??? | | ???????????????????# %" " #?? | | ???????????????????# " " #?? | | ???????????# ###### a " ### #?? | | ???????????# $a #???## ##?? | | ???????????# a #???????????? | | ???????????### ####### aa #???????????? | | ??????????????????# a #???????????? | | ??????????????????# a ##???????????? | | ??????????????????#?#### g #????????????? | | ??????????????????? ???## ##???????????? | | ????????????????###?????## ##??????????? | | ?????????????????????????## #??????????? | | ??????????????????????????# #??????????? | | ??????????????????????????# ##?????????? | | ??????????????????????????## #?????????? | | ???????????????????????????## #?????????? | | ????????????????????????????# #########?? | | ????????????????????????????# #?? | | ????????????????????????????# #?? | | ????????????????????????????# #### #?? | | ????????????????????????????## #??# #?? | | ?????????????????????????????#####??# #?? | | ????????????????????????????????????# #?? | +----------------------------------------------------+ Best States ------------- Heat Dissipation 42 Energy Generation 10 Energy Capacity 250 Matter Stores 446 Matter Capacity 500 Sight Range 18 Robot Scan Range 14 Terrain Scan Density 10 Armor Coverage 150 Resistance: KI 20 Resistance: TH 20 Resistance: EX 20 Resistance: EM 20 Resistance: I 20 Resistance: S 20 Resistance: P 20 Evasion (%) 55 Offensive Hacking 10 Item Schematics ----------------- None Robot Schematics ------------------ None Fabricated ------------ Nothing Alien Tech Used ----------------- None Achievements -------------- None Challenges ------------ None Game ------ Seed AntigravHelicalSource Manual? 0 Play Time 00:18:03 Cumulative 1.2 hours Start 2024.05.14 @ 21:57:09 End 2024.05.15 @ 20:43:37 Sessions 3 Manual Loads 0 Difficulty Adventurer Special Mode None Game No. 2 Rogue 0 Adventurer 2 Explorer 0 Win Type - Total 0 Types 0/0/0/0/0/0/0/0/0 Lore% 0 Gallery% 2 Achievement% 1 Wizard Run 0 Options --------- Layout 1 ASCII 0 Keyboard 0 Movement Mouse Keybinds 0 Fullscreen 1 Font 32/SmallcapsGlow Map View 50x40 Zoom Use 0% Tactical HUD 1 Map Filters NONE Filters NONE Steam 1 RUN: 68efd7aa-888b-4e5c-9119-75c4296e83ed